fUSD/lending_fUSD_20260308
["ID","MTS","AMOUNT","RATE_DAILY","PERIOD"]
[407981709,1772963440889,-5000.0,0.000175,2]
[407981710,1772963440900,-893.57793779,0.00017549,2]
[407981711,1772963440910,-171.6595106,0.0001765,2]
[407981712,1772963440919,-800.0,0.00017808,2]
[407981713,1772963440931,-206.35597305,0.00017884,2]
[407981714,1772963440940,-382.30094549,0.00017884,2]
[407981715,1772963440949,-169.06691202,0.00017884,2]
[407981716,1772963440958,-500.0,0.00017884,2]
[407981717,1772963440968,-232.09609424,0.00017884,2]
[407981718,1772963440977,-217.77568133,0.00017884,2]
[407981719,1772963440987,-354.56197399,0.00017884,2]
[407981720,1772963440996,-500.0,0.00017884,2]
[407981721,1772963441006,-646.6676362,0.00017884,2]
[407981722,1772963441015,-500.0,0.00017884,2]
[407981723,1772963441024,-500.0,0.00017884,2]
[407981724,1772963441033,-6504.42152833,0.00017885,2]
[407981725,1772963441042,-7974.96122574,0.00017885,2]
[407981726,1772963441052,-160.88,0.000179,2]
[407981727,1772963441061,-893.57793779,0.00017941,2]
[407981728,1772963441071,-10000.0,0.00018,2]
[407981729,1772963441080,-718.0,0.00018275,2]
[407981730,1772963441089,-7974.96122574,0.00018288,2]
[407981731,1772963441099,-893.57793779,0.00018332,2]
[407981732,1772963441108,-6504.42152833,0.00018388,2]
[407981733,1772963441117,-171.6595106,0.000184,2]
[407981734,1772963441130,-503.0,0.00018493,2]
[407981735,1772963441139,-5000.0,0.000185,2]
[407981736,1772963441148,-221.22,0.00018517,2]
[407981737,1772963441157,-587.0,0.00018623,2]
[407981738,1772963441166,-160.88,0.0001868,2]
[407981739,1772963441176,-7974.96122574,0.00018691,2]
[407981740,1772963441186,-893.57793779,0.00018724,2]
[407981741,1772963441195,-2351.0,0.00018812,2]
[407981742,1772963441204,-481.74,0.00018857,2]
[407981743,1772963441213,-6504.42152833,0.00018892,2]
[407981744,1772963441223,-339.39,0.00018904,2]
[407981745,1772963441232,-10000.0,0.00018941,2]
[407981746,1772963441241,-165.93260311,0.00019,2]
[407981747,1772963441251,-379.15763953,0.00019,2]
[407981748,1772963441259,-10000.0,0.00019,2]
[407981749,1772963441269,-500.0,0.0001904,2]
[407981750,1772963441278,-481.74,0.00019048,2]
[407981751,1772963441287,-7974.96122574,0.00019094,2]
[407981752,1772963441298,-5000.0,0.000191,2]
[407981753,1772963441307,-893.57793779,0.00019116,2]
[407981754,1772963441317,-171.6595106,0.0001915,2]
[407981755,1772963441330,-2000.0,0.000192,2]
[407981756,1772963441339,-5000.0,0.000192,2]
[407981757,1772963441349,-1521.4,0.00019222,2]
[407981758,1772963441359,-481.74,0.00019239,2]
[407981759,1772963441369,-773.67,0.00019268,2]
[407981760,1772963441378,-5000.0,0.000193,2]
[407981761,1772963441388,-6504.42152833,0.00019396,2]
[407981762,1772963441397,-5000.0,0.000194,2]
[407981763,1772963441406,-481.74,0.00019429,2]
[407981764,1772963441416,-160.88,0.0001946,2]
[407981765,1772963441426,-7974.96122574,0.00019497,2]
[407981766,1772963441436,-5000.0,0.000195,2]
[407981767,1772963441447,-893.57793779,0.00019508,2]
[407981768,1772963441457,-5000.0,0.000196,2]
[407981769,1772963441466,-481.75467492,0.0001962,2]
[407981770,1772963441476,-5000.0,0.000197,2]
[407981771,1772963441485,-446.0,0.00019789,2]
[407981772,1772963441494,-5000.0,0.000198,2]
[407981773,1772963441504,-171.6595106,0.000199,2]
[407981774,1772963441726,-7974.96122574,0.000199,2]
[407981775,1772963441735,-893.57793779,0.000199,2]
[407981776,1772963441745,-10000.0,0.000199,2]
[407981777,1772963441755,-6504.42152833,0.000199,2]
[407981778,1772963441764,-150.0,0.00019947,2]
[407981779,1772963441773,-188.05024178,0.00019973,2]
[407981780,1772963441782,-321.79966557,0.00019973,2]
[407981781,1772963441791,-151.0,0.00019997,2]
[407981782,1772963441800,-310.89756555,0.00019999,2]
[407981783,1772963441811,-300.0,0.00019999,2]
[407981784,1772963441820,-3420.0814613,0.00019999,2]
[407981785,1772963441829,-270.6300001,0.00019999,2]
[407981786,1772963441838,-23016.4352565,0.00019999,2]
[407981787,1772963441847,-1627099.64726849,0.0002,2]
[407981788,1772963441952,-262.632924,0.0002,2]
[407981791,1772963442780,-1060.84271478,0.0002,2]
[407981798,1772963445487,-12243.25995398,0.0002,2]
[407981799,1772963445499,-9253.20065759,0.0002,2]
[407981800,1772963445540,-431125.17375312,0.0002,2]
[407981801,1772963445650,-71497.73370247,0.0002,2]
[407981802,1772963445704,-2625.19046352,0.0002,2]
[407981821,1772963467654,-500.0,0.00015861,2]
[407981822,1772963467675,-2000.0,0.0001589,2]
[407981823,1772963467696,-1000.0,0.00016261,2]
[407981824,1772963467718,-2500.0,0.00016261,2]
[407981825,1772963519866,3883.7281,0.00016161,2]
[407981826,1772963550305,116.2719,0.00016261,2]
[407981827,1772963584284,-300.0,0.00015861,2]
[407981828,1772963584333,-342.74107858,0.00015862,2]
[407981829,1772963587396,-5000.01,0.00015862,2]
[407981830,1772963590442,-5000.01,0.00015862,2]
[407981831,1772963593455,-5000.01,0.00015862,2]
[407981832,1772963596493,-5000.01,0.00015862,2]
[407981833,1772963599477,-5000.01,0.00015862,2]
[407981834,1772963602504,-5000.01,0.00015862,2]
[407981835,1772963605571,-5000.01,0.00015862,2]
[407981836,1772963608572,-5000.01,0.00015862,2]
[407981837,1772963611601,-171.65951064,0.00015767,2]
[407981838,1772963611634,-4656.69097872,0.00015862,2]
[407981839,1772963614587,-5000.01,0.00015862,2]
[407981840,1772963617652,-5000.01,0.00015862,2]
[407981841,1772963620700,-5000.01,0.00015767,2]
[407981842,1772963626819,-1504.41152836,0.00015767,2]
[407981843,1772963626885,-1991.18694328,0.00015862,2]
[407981844,1772963632715,-5000.01,0.00015862,2]
[407981845,1772963638662,-5000.01,0.00015862,2]
[407981846,1772963695407,159.1,0.00014,2]
[407981847,1772963696000,159.1,0.00014975,2]
[407981848,1772963836557,500.0,0.00015,30]
[407981849,1772963837029,807.05125089,0.000101,2]
[407981850,1772964040105,-209.117595,0.00015621,2]
[407981851,1772964040132,-169.9904657,0.000157,2]
[407981852,1772964040162,-203.23010495,0.000157,2]
[407981853,1772964040186,-281.0,0.000157,2]
[407981854,1772964040211,-511.62329168,0.00015744,2]
[407981855,1772964040238,-2500.0,0.00015762,2]
[407981856,1772964040265,-1200.0,0.00015772,2]
[407981857,1772964040288,-300.0,0.00015772,2]
[407981858,1772964040314,-300.0,0.00015772,2]
[407981859,1772964040339,-1115.77317728,0.00015773,2]
[407981860,1772964040368,-5691.36883735,0.00015773,2]
[407981861,1772964040394,-7974.96122579,0.00015773,2]
[407981862,1772964040420,-200.0,0.00015809,2]
[407981863,1772964040446,-382.30094549,0.00015861,2]
[407981864,1772964040471,-232.09609424,0.00015861,2]
[407981865,1772964040496,-169.06691202,0.00015861,2]
[407981866,1772964040520,-217.77568133,0.00015861,2]
[407981867,1772964040544,-500.0,0.00015861,2]
[407981868,1772964040568,-500.0,0.00015861,2]
[407981869,1772964040593,-354.56197399,0.00015861,2]
[407981870,1772964040617,-206.35597305,0.00015861,2]
[407981871,1772964040644,-500.0,0.00015861,2]
[407981872,1772964040668,-646.6676362,0.00015861,2]
[407981873,1772964040696,-500.0,0.00015861,2]
[407981874,1772964040725,-500.0,0.00015861,2]
[407981875,1772964040753,-500.0,0.00015861,2]
[407981876,1772964040782,-500.0,0.00015861,2]
[407981877,1772964040812,-500.0,0.00015861,2]
[407981878,1772964040841,-72234.11008593,0.00015862,2]
[407981879,1772964103681,407.30042238,0.00013,15]
[407981880,1772964108936,1500.0,0.00014,2]
[407981881,1772964135384,500.0,0.00015,30]
[407981882,1772964135422,500.0,0.00015,30]
[407981883,1772964135904,500.0,0.000101,2]
[407981884,1772964135941,500.0,0.000101,2]
[407981885,1772964136171,500.0,0.00015,30]
[407981886,1772964136684,500.0,0.000101,2]
[407981887,1772964139905,500.0,0.00015,30]
[407981888,1772964140861,278.08405016,0.00015,30]
[407981889,1772964140884,221.91594984,0.00015,30]
[407981890,1772964143909,500.0,0.000101,2]
[407981891,1772964144338,500.0,0.00015,30]
[407981892,1772964146460,500.0,0.00015,30]
[407981893,1772964146620,2291.46875167,0.0001421,7]
[407981894,1772964153232,3283.29190126,0.0001,2]
[407981895,1772964154912,347.7302225,0.0001,2]
[407981896,1772964197475,-2331.931,0.00015545,2]
[407981897,1772964197510,-156.036,0.00015545,2]
[407981898,1772964197547,-24.076,0.00015545,2]
[407981899,1772964200389,-300.0,0.00015699,2]
[407981900,1772964200426,-4400.01,0.000157,2]
[407981901,1772964209537,-2361.83,0.000157,2]
[407981902,1772964209563,-276.35,0.000157,2]
[407981903,1772964248614,2368.00172203,7.945e-05,2]
[407981904,1772964248642,7029.20265697,7.945e-05,2]
[407981905,1772964260415,-559.37,0.00015471,2]
[407981906,1772964276166,166.66,0.00014821,2]
[407981907,1772964276364,166.66,0.00015133,2]
[407981908,1772964276567,166.66,0.00015445,2]
[407981909,1772964306030,-200.0,0.00015722,2]
[407981910,1772964306062,-166.66,0.00015757,2]
[407981911,1772964306090,-438.0,0.00015761,2]
[407981912,1772964306119,-1200.0,0.00015761,2]
[407981913,1772964306149,-300.0,0.00015761,2]
[407981914,1772964308112,1113.593449,7.945e-05,2]
[407981915,1772964308986,-2500.0,0.00015762,2]
[407981916,1772964312071,-862.3989,0.00015762,2]
[407981917,1772964312102,-3165.9322,0.00015762,2]
[407981918,1772964367562,4886.218048,7.945e-05,2]
[407981920,1772964403359,-300.0,0.00015761,2]
[407981921,1772964403388,-109.28,0.00015762,2]
[407981922,1772964403420,-62590.72,0.00015762,2]
[407981923,1772964416524,152.57,0.00014,2]
[407981924,1772964417192,152.57,0.00014867,2]
[407981925,1772964434491,-179.89843246,0.00015662,2]
[407981926,1772964434515,-152.57,0.00015733,2]
[407981927,1772964434539,-250.0,0.0001574,2]
[407981928,1772964434562,-600.0,0.00015748,2]
[407981929,1772964434586,-300.0,0.00015761,2]
[407981930,1772964434609,-1517.53156754,0.00015762,2]
[407981931,1772964442075,150.0,0.00015552,2]
[407981932,1772964452959,-179.89843246,0.00015761,2]
[407981933,1772964453013,-4490.21313508,0.00015762,2]
[407981934,1772964453105,-5000.01,0.00015762,2]
[407981935,1772964462200,-5000.01,0.00015762,2]
[407981936,1772964462332,-5000.01,0.00015762,2]
[407981937,1772964488304,1996.353119,7.945e-05,2]
[407981938,1772964528578,250.0,0.00015,2]
[407981939,1772964612382,355.99,0.000148,2]
[407981946,1772964631757,-200.0,0.00015396,2]
[407981947,1772964631767,-312.775,0.00015396,2]
[407981948,1772964631778,-557.36,0.00015396,2]
[407981949,1772964631810,-4171.8304989,0.00015396,2]
[407981950,1772964631819,-278.0,0.00015396,2]
[407981951,1772964631830,-298.38453609,0.00015744,2]
[407981952,1772964631839,-300.0,0.00015761,2]
[407981953,1772964631849,-1200.0,0.00015761,2]
[407981954,1772964631859,-14755.68289738,0.00015762,2]
[407981955,1772964631869,-6751.2313,0.00015762,2]
[407981956,1772964631878,-2500.0,0.00015762,2]
[407981957,1772964631891,-727.9473321,0.00015762,2]
[407981958,1772964631904,-5269.88437478,0.00015762,2]
[407981959,1772964631914,-8665.93036519,0.00015762,2]
[407981960,1772964631923,-150.0,0.00015762,2]
[407981961,1772964631932,-7618.82671465,0.00015762,2]
[407981962,1772964631941,-1894.98396985,0.00015762,2]
[407981963,1772964631950,-200.0,0.00015766,2]
[407981964,1772964631959,-600.0,0.0001579,2]
[407981965,1772964631969,-4934.7919721,0.00015796,2]
[407981966,1772964631978,-170.2758295,0.00015835,2]
[407981967,1772964631987,-151.0,0.00015852,2]
[407981968,1772964631997,-151.0,0.00015852,2]
[407981970,1772964632006,-151.0,0.00015852,2]
[407981972,1772964632016,-151.0,0.00015852,2]
[407981973,1772964632025,-151.0,0.00015852,2]
[407981975,1772964632035,-151.0,0.00015852,2]
[407981977,1772964632044,-151.0,0.00015852,2]
[407981979,1772964632056,-151.0,0.00015852,2]
[407981980,1772964632073,-151.0,0.00015852,2]
[407981982,1772964632085,-151.0,0.00015852,2]
[407981984,1772964632094,-151.0,0.00015852,2]
[407981986,1772964632104,-151.0,0.00015859,2]
[407981987,1772964632114,-500.0,0.00015861,2]
[407981988,1772964632123,-500.0,0.00015861,2]
[407981989,1772964632132,-500.0,0.00015861,2]
[407981990,1772964632142,-500.0,0.00015861,2]
[407981991,1772964632152,-500.0,0.00015861,2]
[407981992,1772964632162,-500.0,0.00015861,2]
[407981993,1772964632171,-500.0,0.00015861,2]
[407981994,1772964632181,-500.0,0.00015861,2]
[407981995,1772964632190,-500.0,0.00015861,2]
[407981996,1772964632199,-500.0,0.00015861,2]
[407981997,1772964632208,-293.88874358,0.00015861,2]
[407981998,1772964632216,-500.0,0.00015861,2]
[407981999,1772964632225,-500.0,0.00015861,2]
[407982000,1772964632234,-500.0,0.00015861,2]
[407982001,1772964632244,-382.30094549,0.00015861,2]
[407982002,1772964632254,-500.0,0.00015861,2]
[407982003,1772964632267,-500.0,0.00015861,2]
[407982004,1772964632277,-646.6676362,0.00015861,2]
[407982005,1772964632289,-500.0,0.00015861,2]
[407982006,1772964632302,-232.09609424,0.00015861,2]
[407982007,1772964632311,-206.35597305,0.00015861,2]
[407982008,1772964632321,-354.56197399,0.00015861,2]
[407982009,1772964632330,-500.0,0.00015861,2]
[407982010,1772964632340,-169.06691202,0.00015861,2]
[407982011,1772964632350,-35349.2236954,0.00015862,2]
[407982012,1772964632361,-3245.47075815,0.00015862,2]
[407982015,1772964637956,-745.53165223,0.00015862,2]
[407982016,1772964637967,-1188.7187246,0.00015862,2]
[407982047,1772964640074,-2320246.20608311,0.00015862,2]
[407982048,1772964640084,-190.96531692,0.00015862,2]
[407982049,1772964640093,-151.0,0.00015862,2]
[407982050,1772964640103,-9999.99,0.00015873,2]
[407982051,1772964640112,-150.99,0.00015873,2]
[407982052,1772964640121,-500.0,0.00015873,2]
[407982053,1772964640130,-500.0,0.00015873,2]
[407982054,1772964640142,-166.66,0.00016069,2]
[407982055,1772964640152,-46380.03382442,0.000162,5]
[407982056,1772964640161,-8665.9303651,0.00016222,2]
[407982057,1772964640169,-1894.98396979,0.00016222,2]
[407982058,1772964640178,-32807.3809,0.00016261,2]
[407982059,1772964640187,-1000.0,0.00016261,2]
[407982060,1772964640196,-855.0,0.00016285,2]
[407982061,1772964640206,-1889.0,0.00016323,2]
[407982062,1772964640215,-5269.88437474,0.00016353,2]
[407982063,1772964640224,-1582.0,0.00016355,2]
[407982064,1772964640233,-166.66,0.00016381,2]
[407982065,1772964640242,-1869.0,0.00016385,2]
[407982066,1772964640251,-225.55055,0.000164,2]
[407982067,1772964640261,-150.0,0.000164,2]
[407982068,1772964640270,-225.917583,0.00016402,2]
[407982069,1772964640279,-1000.0,0.00016421,2]
[407982070,1772964640288,-1000.0,0.00016421,2]
[407982071,1772964640297,-500.0,0.00016461,2]
[407982072,1772964640307,-152.57,0.000166,2]
[407982073,1772964640316,-173.28,0.00016649,2]
[407982074,1772964640325,-8665.9303651,0.00016682,2]
[407982075,1772964640334,-1894.98396979,0.00016682,2]
[407982077,1772964640344,-166.34,0.00016712,2]
[407982078,1772964640353,-171.6595106,0.000168,2]
[407982079,1772964640363,-510.0,0.0001688,2]
[407982080,1772964640372,-253.49447439,0.00016935,2]
[407982081,1772964640381,-5000.0,0.00016935,2]
[407982082,1772964640390,-5269.88437474,0.00016944,2]
[407982083,1772964640399,-1500.0,0.00016968,2]
[407982084,1772964640408,-500.0,0.00016968,2]
[407982085,1772964640418,-500.0,0.00016973,2]
[407982086,1772964640428,-500.0,0.00016973,2]
[407982087,1772964640437,-500.0,0.00016973,2]
[407982088,1772964640446,-500.0,0.00016973,2]
[407982089,1772964640455,-500.0,0.00016973,2]
[407982090,1772964640465,-500.0,0.00016973,2]
[407982091,1772964640475,-500.0,0.00016973,2]
[407982092,1772964640484,-121287.62206307,0.00017,2]
[407982093,1772964640494,-300.0,0.00017,2]
[407982094,1772964640505,-506.0,0.00017,2]
[407982095,1772964640517,-674.77,0.00017001,2]
[407982096,1772964640526,-197.13766539,0.0001701,2]
[407982097,1772964640535,-23364.92296281,0.000171,2]
[407982098,1772964640545,-33046.23980405,0.0001711,2]
[407982099,1772964640554,-8665.9303651,0.00017141,2]
[407982100,1772964640563,-1894.98396979,0.00017141,2]
[407982101,1772964640573,-1445.69,0.00017205,2]
[407982102,1772964640585,-5000.0,0.00017307,2]
[407982103,1772964640595,-600.0,0.00017307,2]
[407982104,1772964640606,-300.0,0.00017307,2]
[407982105,1772964640616,-250.0,0.00017307,2]
[407982106,1772964640625,-1680.0,0.00017323,2]
[407982107,1772964640634,-2500.0,0.00017337,2]
[407982108,1772964640643,-2500.0,0.00017337,2]
[407982109,1772964640652,-2500.0,0.00017337,2]
[407982110,1772964640661,-2500.0,0.00017337,2]
[407982111,1772964640670,-2409.53509471,0.00017337,2]
[407982112,1772964640679,-195.0,0.00017337,2]
[407982113,1772964640688,-195.0,0.00017337,2]
[407982114,1772964640697,-195.0,0.00017337,2]
[407982115,1772964640706,-195.0,0.00017337,2]
[407982116,1772964640715,-195.0,0.00017337,2]
[407982117,1772964640725,-600.0,0.00017338,2]
[407982118,1772964640734,-152.57,0.00017467,2]
[407982119,1772964640743,-1500.0,0.00017516,2]
[407982120,1772964640752,-5269.88437474,0.00017535,2]
[407982121,1772964640761,-8665.9303651,0.00017601,2]
[407982122,1772964640771,-1894.98396979,0.00017601,2]
[407982123,1772964640780,-403.0,0.000177,5]
[407982124,1772964640792,-183.25,0.00017758,2]
[407982125,1772964640801,-800.0,0.00017808,2]
[407982126,1772964640810,-171.6595106,0.00017834,2]
[407982127,1772964640819,-674.77,0.00017851,2]
[407982128,1772964640828,-3181.97034185,0.0001789,2]
[407982129,1772964640838,-1860.05864562,0.00018,5]
[407982130,1772964640847,-301.40781056,0.00018,5]
[407982131,1772964640856,-8665.9303651,0.00018061,2]
[407982132,1772964640866,-1894.98396979,0.00018061,2]
[407982133,1772964640875,-721.0,0.00018078,2]
[407982134,1772964640884,-5269.88437474,0.00018127,2]
[407982135,1772964640893,-152.57,0.00018333,2]
[407982136,1772964640903,-157.747916,0.00018348,2]
[407982137,1772964640912,-4127.0,0.00018521,2]
[407982138,1772964640921,-8665.9303651,0.00018521,2]
[407982139,1772964640930,-1894.98396979,0.00018521,2]
[407982140,1772964640939,-674.77,0.00018701,2]
[407982141,1772964640948,-1101.100923,0.00018717,2]
[407982142,1772964640957,-5269.88437474,0.00018718,2]
[407982143,1772964640966,-150.367033,0.0001886,2]
[407982144,1772964640975,-171.6595106,0.00018867,2]
[407982145,1772964640985,-151.0,0.00018971,2]
[407982146,1772964640994,-8665.9303651,0.0001898,2]
[407982147,1772964641003,-1894.98396979,0.0001898,2]
[407982148,1772964641012,-350.0,0.00019017,2]
[407982149,1772964641021,-2351.0,0.0001904,2]
[407982150,1772964641030,-150.0,0.00019101,2]
[407982151,1772964641039,-151.28025419,0.00019101,2]
[407982152,1772964641048,-150.0,0.00019101,2]
[407982153,1772964641057,-150.0,0.00019101,2]
[407982154,1772964641065,-150.0,0.00019101,2]
[407982155,1772964641074,-214.72781122,0.00019101,2]
[407982156,1772964641083,-150.0,0.00019101,2]
[407982157,1772964641092,-150.0,0.00019101,2]
[407982158,1772964641101,-150.0,0.00019101,2]
[407982159,1772964641110,-350.0,0.00019141,2]
[407982160,1772964641119,-150.0,0.00019156,2]
[407982161,1772964641128,-150.0,0.00019156,2]
[407982162,1772964641137,-150.0,0.00019156,2]
[407982163,1772964641146,-150.0,0.00019156,2]
[407982164,1772964641155,-150.0,0.00019156,2]
[407982165,1772964641164,-2000.0,0.000192,2]
[407982166,1772964641173,-1000.0,0.000192,2]
[407982167,1772964641182,-152.57,0.000192,2]
[407982168,1772964641191,-5269.88437474,0.00019309,2]
[407982169,1772964641199,-245.6888253,0.00019368,2]
[407982170,1772964641208,-2000.0,0.00019375,2]
[407982171,1772964641217,-350.0,0.00019439,2]
[407982172,1772964641226,-8665.9303651,0.0001944,2]
[407982173,1772964641235,-1894.98396979,0.0001944,2]
[407982174,1772964641243,-350.0,0.00019507,2]
[407982175,1772964641252,-446.0,0.00019516,2]
[407982176,1772964641261,-446.0,0.00019532,2]
[407982177,1772964641269,-446.0,0.00019538,2]
[407982178,1772964641288,-446.0,0.0001955,2]
[407982179,1772964641297,-674.77,0.00019551,2]
[407982180,1772964641306,-446.0,0.00019632,2]
[407982181,1772964641315,-446.0,0.00019805,2]
[407982182,1772964641325,-10000.0,0.00019847,2]
[407982183,1772964641334,-350.0,0.00019851,2]
[407982184,1772964641343,-3257.8811117,0.00019854,2]
[407982185,1772964641352,-500.0,0.00019863,2]
[407982186,1772964641361,-188.05024178,0.00019873,2]
[407982187,1772964641370,-321.79966557,0.00019873,2]
[407982188,1772964641379,-446.0,0.00019879,2]
[407982189,1772964641388,-446.0,0.00019881,2]
[407982190,1772964641397,-171.6595106,0.000199,2]
[407982191,1772964641405,-1411.2346,0.000199,2]
[407982192,1772964641414,-929.0793,0.000199,2]
[407982193,1772964641423,-5269.88437474,0.000199,2]
[407982194,1772964641432,-8665.9303651,0.000199,2]
[407982195,1772964641440,-446.0,0.00019925,2]
[407982196,1772964641449,-573611.9637374,0.00019947,2]
[407982197,1772964641458,-350.0,0.00019963,2]
[407982198,1772964641467,-350.0,0.00019967,2]
[407982199,1772964641476,-150.0,0.00019974,2]
[407982200,1772964641485,-551.23395292,0.0001998,2]
[407982201,1772964641494,-151.0,0.00019997,2]
[407982202,1772964641503,-300.0,0.00019999,2]
[407982203,1772964641513,-164.431,0.00019999,2]
[407982204,1772964641522,-1049444.88911121,0.0002,2]
[407982209,1772964642789,-738.00476298,0.0002,2]
[407982211,1772964643099,-0.1336649,0.0002,2]
[407982214,1772964645834,-678.08,0.000199,2]
[407982215,1772964645846,-1216.90396979,0.000199,2]
[407982216,1772964645856,-1124.91264292,0.0002,2]
[407982217,1772964645887,-1136.82271602,0.0002,2]
[407982220,1772964735769,500.0,0.00015,30]
[407982221,1772964735800,500.0,0.00015,30]
[407982222,1772964736002,500.0,0.00015,30]
[407982223,1772964736249,500.0,0.000101,2]
[407982224,1772964736418,505.76633109,0.00015,30]
[407982225,1772964736470,721.93475029,0.000101,2]
[407982226,1772964736550,500.0,0.00015,30]
[407982227,1772964740299,500.0,0.00015,30]
[407982228,1772964740750,500.0,0.00015,30]
[407982229,1772964741253,545.98397172,0.000101,2]
[407982230,1772964893696,154.19,0.00014,2]
[407982231,1772964894286,154.19,0.00014709,2]
[407982232,1772965035222,500.0,0.00015,30]
[407982233,1772965035497,500.0,0.00015,30]
[407982234,1772965035563,793.11223707,0.00015,30]
[407982235,1772965035843,500.0,0.000101,2]
[407982236,1772965039076,737.76465158,0.00015,30]
[407982237,1772965039809,500.0,0.00015,30]
[407982238,1772965040273,500.0,0.00015,30]
[407982239,1772965040756,500.0,0.000101,2]
[407982240,1772965043165,500.0,0.00015,30]
[407982241,1772965044500,500.0,0.00015,30]
[407982242,1772965045360,500.0,0.00015,30]
[407982243,1772965046510,500.0,0.00015,30]
[407982244,1772965061190,150.0,0.0001508,2]
[407982245,1772965063524,500.0,0.0001508,2]
[407982246,1772965269810,3230.95,0.00014885,2]
[407982247,1772965323402,16321.38,0.00015009,2]
[407982248,1772965349927,20897.65,0.00014831,2]
[407982249,1772965401923,200.0,0.00014666,2]
[407982250,1772965456031,183.74,0.00011721,2]
[407982251,1772965456237,183.74,0.00014651,2]
[407982252,1772965492811,29383.10078528,0.00014781,2]
[407982253,1772965642048,500.0,8e-05,2]
[407982254,1772965642530,500.0,8e-05,2]
[407982267,1772965831919,-927.69623708,0.00012069,2]
[407982268,1772965831930,-177.07376292,0.00012069,2]
[407982269,1772965831950,-249.0,0.00012069,2]
[407982270,1772965831961,-249.20576339,0.00013276,2]
[407982271,1772965831971,-72.73013924,0.00014099,2]
[407982272,1772965831985,-5171.23986076,0.00014099,2]
[407982273,1772965831994,-200.0,0.00014186,2]
[407982274,1772965832006,-1294.82,0.00014297,2]
[407982275,1772965832016,-250.0,0.0001437,2]
[407982276,1772965832026,-2419.87997606,0.0001458,2]
[407982277,1772965832036,-284.59544016,0.0001468,2]
[407982278,1772965832046,-1200.0,0.00014778,2]
[407982279,1772965832055,-438.0,0.00014779,2]
[407982280,1772965832065,-300.0,0.00014779,2]
[407982281,1772965832074,-300.0,0.00014779,2]
[407982282,1772965832084,-300.0,0.00014779,2]
[407982284,1772965832094,-16325.93921472,0.00014781,2]
[407982287,1772965832104,-284.59544016,0.0001479,2]
[407982289,1772965832114,-1912.21790633,0.00014873,2]
[407982291,1772965832124,-638.22868293,0.00014873,2]
[407982293,1772965832133,-295.84742426,0.00014873,2]
[407982296,1772965832142,-309.16,0.00014877,2]
[407982299,1772965832151,-193.57992844,0.000149,2]
[407982301,1772965832161,-284.59544016,0.000149,2]
[407982303,1772965832170,-248.83049514,0.00014905,2]
[407982306,1772965832180,-908.0,0.0001491,2]
[407982309,1772965832189,-151.0,0.00014912,2]
[407982312,1772965832198,-150.0,0.00014913,2]
[407982314,1772965832208,-631.05688229,0.00014914,2]
[407982316,1772965832217,-198.85155453,0.00014914,2]
[407982318,1772965832227,-500.0,0.00014914,2]
[407982320,1772965832239,-631.05688229,0.00014914,2]
[407982321,1772965832249,-469.54843128,0.00014914,2]
[407982322,1772965832258,-631.05688229,0.00014914,2]
[407982323,1772965832267,-631.05688229,0.00014914,2]
[407982324,1772965832277,-631.05688229,0.00014914,2]
[407982325,1772965832287,-631.05688229,0.00014914,2]